[Event "*** Titled Tuesday Blitz"]
[Site "Chess.com"]
[Date "2020.04.07"]
[Round "6"]
[White "ShahMatKanal"]
[Black "Sunnika"]
[Result "0-1"]
[WhiteElo "2561"]
[BlackElo "2372"]
[TimeControl "180+1"]
[EndTime "14:07:04 PDT"]
[Termination "Sunnika won on time"]

1. e4 {[%clk 0:03:00.9]} 1... Nf6 {[%clk 0:03:00.9]} 2. Nc3 {[%clk 0:02:57]}
2... d5 {[%clk 0:03:00.1]} 3. e5 {[%clk 0:02:50.4]} 3... Nfd7 {[%clk 0:02:58.5]}
4. e6 {[%clk 0:02:41.9]} 4... fxe6 {[%clk 0:02:57.9]} 5. f4 {[%clk 0:02:36]}
5... g6 {[%clk 0:02:54.4]} 6. Nf3 {[%clk 0:02:34.6]} 6... Bg7 {[%clk 0:02:54.6]}
7. d4 {[%clk 0:02:34.4]} 7... c5 {[%clk 0:02:53.6]} 8. h4 {[%clk 0:02:23]} 8...
Nc6 {[%clk 0:02:47.6]} 9. h5 {[%clk 0:02:15.6]} 9... cxd4 {[%clk 0:02:47]} 10.
Ne2 {[%clk 0:02:10.3]} 10... Qb6 {[%clk 0:02:39.4]} 11. hxg6 {[%clk 0:01:58.1]}
11... hxg6 {[%clk 0:02:39]} 12. Rxh8+ {[%clk 0:01:59]} 12... Bxh8 {[%clk
0:02:39.6]} 13. Qd3 {[%clk 0:01:59.9]} 13... Nf8 {[%clk 0:02:35.5]} 14. Ng5
{[%clk 0:01:55.7]} 14... e5 {[%clk 0:02:19]} 15. fxe5 {[%clk 0:01:28.3]} 15...
Nxe5 {[%clk 0:02:06.6]} 16. Qg3 {[%clk 0:01:21.1]} 16... Bf5 {[%clk 0:02:06.3]}
17. Nf4 {[%clk 0:01:09.5]} 17... O-O-O {[%clk 0:01:58.9]} 18. Nd3 {[%clk
0:00:45.2]} 18... Nc4 {[%clk 0:01:37.9]} 19. Nf7 {[%clk 0:00:40.9]} 19... Qe6+
{[%clk 0:01:37.1]} 20. Kd1 {[%clk 0:00:17.6]} 20... Qxf7 {[%clk 0:01:35.7]} 21.
a4 {[%clk 0:00:12.2]} 21... e5 {[%clk 0:01:33.2]} 22. a5 {[%clk 0:00:11.4]}
22... a6 {[%clk 0:01:31.6]} 23. Ra4 {[%clk 0:00:09.4]} 23... Ne6 {[%clk
0:01:28.2]} 24. Rb4 {[%clk 0:00:07.7]} 24... e4 {[%clk 0:01:27.6]} 25. Nf4
{[%clk 0:00:04]} 25... Be5 {[%clk 0:00:53]} 26. Qf2 {[%clk 0:00:02.1]} 26...
Nxf4 {[%clk 0:00:49]} 27. Bxf4 {[%clk 0:00:01.5]} 27... Bg4+ {[%clk 0:00:49.4]}
28. Be2 {[%clk 0:00:01.2]} 28... Bxe2+ {[%clk 0:00:46]} 29. Qxe2 {[%clk
0:00:01.5]} 29... Qxf4 {[%clk 0:00:45]} 0-1

[Event "*** Titled Tuesday Blitz"]
[Site "Chess.com"]
[Date "2020.04.07"]
[Round "6"]
[White "drinbet"]
[Black "TheKingDoctor"]
[Result "1-0"]
[WhiteElo "2274"]
[BlackElo "2093"]
[TimeControl "180+1"]
[EndTime "14:07:04 PDT"]
[Termination "drinbet won on time"]

1. e4 {[%clk 0:03:00.9]} 1... e5 {[%clk 0:02:58.3]} 2. Nf3 {[%clk 0:03:01.2]}
2... d6 {[%clk 0:02:57.5]} 3. d4 {[%clk 0:03:00.9]} 3... exd4 {[%clk 0:02:57.3]}
4. Nxd4 {[%clk 0:03:00.5]} 4... Nf6 {[%clk 0:02:58.2]} 5. Nc3 {[%clk 0:03:00.8]}
5... Be7 {[%clk 0:02:57]} 6. Be2 {[%clk 0:03:01.1]} 6... O-O {[%clk 0:02:56]} 7.
O-O {[%clk 0:03:01.7]} 7... c5 {[%clk 0:02:56.6]} 8. Nf3 {[%clk 0:02:59.9]} 8...
Nc6 {[%clk 0:02:54.6]} 9. h3 {[%clk 0:02:57.3]} 9... Be6 {[%clk 0:02:43.5]} 10.
Ng5 {[%clk 0:02:55.1]} 10... Nd4 {[%clk 0:02:04.8]} 11. Nxe6 {[%clk 0:02:48.6]}
11... fxe6 {[%clk 0:02:05.7]} 12. e5 {[%clk 0:02:46]} 12... dxe5 {[%clk
0:01:56.9]} 13. Bd3 {[%clk 0:02:43.8]} 13... Rc8 {[%clk 0:01:01.7]} 14. b3
{[%clk 0:02:34.4]} 14... Nd5 {[%clk 0:00:57.5]} 15. Ne4 {[%clk 0:02:28.4]} 15...
Nf4 {[%clk 0:00:56.6]} 16. Bc4 {[%clk 0:02:17.6]} 16... b5 {[%clk 0:00:52.4]}
17. c3 {[%clk 0:02:02.6]} 17... bxc4 {[%clk 0:00:47.3]} 18. cxd4 {[%clk
0:02:02.5]} 18... Qxd4 {[%clk 0:00:42.2]} 19. Qxd4 {[%clk 0:01:59.8]} 19... cxd4
{[%clk 0:00:41.9]} 20. bxc4 {[%clk 0:01:56.7]} 20... Rxc4 {[%clk 0:00:41.9]} 21.
Bxf4 {[%clk 0:01:52.3]} 21... Rxf4 {[%clk 0:00:37]} 22. f3 {[%clk 0:01:52.1]}
22... Rf8 {[%clk 0:00:36.3]} 23. Rfc1 {[%clk 0:01:49.4]} 23... Rfc8 {[%clk
0:00:36.6]} 24. Rxc4 {[%clk 0:01:49]} 24... Rxc4 {[%clk 0:00:37.5]} 25. Rb1
{[%clk 0:01:49.4]} 25... Rb4 {[%clk 0:00:36.1]} 26. Rxb4 {[%clk 0:01:46.6]}
26... Bxb4 {[%clk 0:00:35.4]} 27. Kf2 {[%clk 0:01:47.2]} 27... Kf7 {[%clk
0:00:34.3]} 28. Ke2 {[%clk 0:01:47.7]} 28... h6 {[%clk 0:00:32.4]} 29. Kd3
{[%clk 0:01:47.4]} 29... Ke7 {[%clk 0:00:31.6]} 30. Kc4 {[%clk 0:01:46.9]} 30...
Ba3 {[%clk 0:00:27.8]} 31. g4 {[%clk 0:01:45.1]} 31... a6 {[%clk 0:00:25.4]} 32.
h4 {[%clk 0:01:44.6]} 32... Kd7 {[%clk 0:00:24.4]} 33. h5 {[%clk 0:01:44.2]}
33... Kc6 {[%clk 0:00:23.7]} 34. Nd2 {[%clk 0:01:36.6]} 34... Be7 {[%clk
0:00:17.8]} 35. Ne4 {[%clk 0:01:34.6]} 35... Ba3 {[%clk 0:00:15.3]} 36. Nf2
{[%clk 0:01:34.4]} 36... Be7 {[%clk 0:00:13.4]} 37. Nd3 {[%clk 0:01:34.2]} 37...
Bd6 {[%clk 0:00:13.2]} 38. Nf2 {[%clk 0:01:31.3]} 1-0

[Event "*** Titled Tuesday Blitz"]
[Site "Chess.com"]
[Date "2020.04.07"]
[Round "6"]
[White "IMUltimateBeast"]
[Black "dretch"]
[Result "1-0"]
[WhiteElo "2645"]
[BlackElo "2756"]
[TimeControl "180+1"]
[EndTime "14:07:08 PDT"]
[Termination "IMUltimateBeast won on time"]

1. d4 {[%clk 0:03:00.9]} 1... d5 {[%clk 0:02:59]} 2. Bf4 {[%clk 0:02:51.5]} 2...
c5 {[%clk 0:02:58.3]} 3. e3 {[%clk 0:02:52]} 3... Nc6 {[%clk 0:02:56.9]} 4. c3
{[%clk 0:02:50.1]} 4... Nf6 {[%clk 0:02:55.7]} 5. Nd2 {[%clk 0:02:50.4]} 5...
Bf5 {[%clk 0:02:51.5]} 6. Ngf3 {[%clk 0:02:46.1]} 6... Qb6 {[%clk 0:02:39.9]} 7.
Qb3 {[%clk 0:02:44.3]} 7... c4 {[%clk 0:02:38.4]} 8. Qxb6 {[%clk 0:02:44.8]}
8... axb6 {[%clk 0:02:38.4]} 9. a3 {[%clk 0:02:43.5]} 9... b5 {[%clk 0:02:34.6]}
10. Rc1 {[%clk 0:02:42.5]} 10... e6 {[%clk 0:02:30.7]} 11. h3 {[%clk 0:02:40.7]}
11... Be7 {[%clk 0:02:21.3]} 12. Be2 {[%clk 0:02:39.3]} 12... Nd7 {[%clk
0:02:14]} 13. Bd1 {[%clk 0:02:38]} 13... Nb6 {[%clk 0:02:06.3]} 14. Bc2 {[%clk
0:02:34.2]} 14... Na4 {[%clk 0:02:02.3]} 15. Bxf5 {[%clk 0:02:32.9]} 15... exf5
{[%clk 0:02:03.2]} 16. Rc2 {[%clk 0:02:25.2]} 16... h5 {[%clk 0:01:38.5]} 17.
O-O {[%clk 0:02:22.8]} 17... f6 {[%clk 0:01:37]} 18. Bh2 {[%clk 0:02:20.5]}
18... Kf7 {[%clk 0:01:29.8]} 19. Nh4 {[%clk 0:02:17.4]} 19... g6 {[%clk
0:01:15.6]} 20. f3 {[%clk 0:02:11]} 20... Kg7 {[%clk 0:01:14.5]} 21. e4 {[%clk
0:02:07.7]} 21... fxe4 {[%clk 0:01:12.6]} 22. fxe4 {[%clk 0:02:07.5]} 22... dxe4
{[%clk 0:01:08.8]} 23. Nxe4 {[%clk 0:02:06.7]} 23... f5 {[%clk 0:01:08.9]} 24.
Nxf5+ {[%clk 0:01:57.3]} 24... gxf5 {[%clk 0:01:08.5]} 25. Rxf5 {[%clk
0:01:57.8]} 25... Rhe8 {[%clk 0:00:49.6]} 26. Re2 {[%clk 0:01:53]} 26... Nxb2
{[%clk 0:00:34.1]} 27. Rxb2 {[%clk 0:01:17.2]} 27... Bxa3 {[%clk 0:00:28.1]} 28.
Re2 {[%clk 0:01:16.2]} 28... b4 {[%clk 0:00:21.5]} 29. d5 {[%clk 0:01:10.9]}
29... b3 {[%clk 0:00:08.2]} 30. Rg5+ {[%clk 0:00:43.1]} 30... Kh6 {[%clk
0:00:06.4]} 31. Bf4 {[%clk 0:00:41.2]} 31... b2 {[%clk 0:00:02.6]} 32. Rg8+
{[%clk 0:00:34.6]} 1-0

[Event "*** Titled Tuesday Blitz"]
[Site "Chess.com"]
[Date "2020.04.07"]
[Round "6"]
[White "SanQui14"]
[Black "MaxVavulin"]
[Result "1-0"]
[WhiteElo "2324"]
[BlackElo "2396"]
[TimeControl "180+1"]
[EndTime "14:07:08 PDT"]
[Termination "SanQui14 won by resignation"]

1. d4 {[%clk 0:03:00.9]} 1... g6 {[%clk 0:03:00.9]} 2. c4 {[%clk 0:03:01.2]}
2... Bg7 {[%clk 0:03:01.8]} 3. Nc3 {[%clk 0:03:01.3]} 3... d6 {[%clk 0:03:02.7]}
4. e4 {[%clk 0:03:01.8]} 4... Nc6 {[%clk 0:03:02.1]} 5. Nf3 {[%clk 0:03:01.9]}
5... Bg4 {[%clk 0:03:00.3]} 6. d5 {[%clk 0:02:59.7]} 6... Nd4 {[%clk 0:02:59.7]}
7. Be3 {[%clk 0:02:55.3]} 7... Bxf3 {[%clk 0:03:00.2]} 8. gxf3 {[%clk
0:02:54.8]} 8... c5 {[%clk 0:03:00.9]} 9. dxc6 {[%clk 0:02:53]} 9... Nxc6 {[%clk
0:03:00.1]} 10. Be2 {[%clk 0:02:53]} 10... Nf6 {[%clk 0:02:59.4]} 11. Qd2 {[%clk
0:02:52.9]} 11... O-O {[%clk 0:02:56.9]} 12. Bh6 {[%clk 0:02:49.6]} 12... Bxh6
{[%clk 0:02:55.6]} 13. Qxh6 {[%clk 0:02:50.5]} 13... Qa5 {[%clk 0:02:53.7]} 14.
Rc1 {[%clk 0:02:44.5]} 14... Rac8 {[%clk 0:02:50.6]} 15. b3 {[%clk 0:02:41.7]}
15... Nd4 {[%clk 0:02:50.1]} 16. Qd2 {[%clk 0:02:37]} 16... Nxe2 {[%clk
0:02:41.1]} 17. Kxe2 {[%clk 0:02:35.7]} 17... Qh5 {[%clk 0:02:38.6]} 18. Rcg1
{[%clk 0:02:29.4]} 18... Rc5 {[%clk 0:02:34.5]} 19. h4 {[%clk 0:02:15.3]} 19...
h6 {[%clk 0:02:22.7]} 20. Qf4 {[%clk 0:02:07]} 20... Re5 {[%clk 0:02:19.4]} 21.
Rg3 {[%clk 0:02:03]} 21... a6 {[%clk 0:02:09]} 22. Kf1 {[%clk 0:01:48.7]} 22...
b5 {[%clk 0:02:08]} 23. Nd5 {[%clk 0:01:46]} 23... bxc4 {[%clk 0:01:58.5]} 24.
Nxf6+ {[%clk 0:01:39]} 24... exf6 {[%clk 0:01:58]} 25. Qxf6 {[%clk 0:01:38.9]}
25... d5 {[%clk 0:01:32]} 26. Rhg1 {[%clk 0:01:34.3]} 26... Re6 {[%clk
0:00:51.8]} 27. Rxg6+ {[%clk 0:01:30.6]} 27... fxg6 {[%clk 0:00:52.4]} 28. Qxe6+
{[%clk 0:01:26.1]} 28... Kg7 {[%clk 0:00:53.3]} 29. bxc4 {[%clk 0:01:00.6]}
29... dxc4 {[%clk 0:00:46.8]} 30. Qxa6 {[%clk 0:00:59.5]} 30... c3 {[%clk
0:00:44.2]} 31. Qb7+ {[%clk 0:00:46.2]} 31... Rf7 {[%clk 0:00:43.8]} 32. Qc6
{[%clk 0:00:46.5]} 32... c2 {[%clk 0:00:32.6]} 33. Qxc2 {[%clk 0:00:45]} 33...
Qxf3 {[%clk 0:00:32.7]} 34. e5 {[%clk 0:00:30.1]} 34... Qg3 {[%clk 0:00:32.7]}
35. Rxg3 {[%clk 0:00:28.7]} 1-0

[Event "*** Titled Tuesday Blitz"]
[Site "Chess.com"]
[Date "2020.04.07"]
[Round "6"]
[White "jncool68"]
[Black "ChesterF"]
[Result "1-0"]
[WhiteElo "2651"]
[BlackElo "2487"]
[TimeControl "180+1"]
[EndTime "14:07:09 PDT"]
[Termination "jncool68 won on time"]

1. e4 {[%clk 0:03:00.9]} 1... c5 {[%clk 0:02:59.8]} 2. Nf3 {[%clk 0:03:00.4]}
2... d6 {[%clk 0:02:58.6]} 3. d4 {[%clk 0:02:59]} 3... cxd4 {[%clk 0:02:59.1]}
4. Nxd4 {[%clk 0:02:59.9]} 4... Nf6 {[%clk 0:02:59.6]} 5. Nc3 {[%clk 0:03:00]}
5... a6 {[%clk 0:03:00]} 6. h3 {[%clk 0:02:58.8]} 6... e5 {[%clk 0:03:00.4]} 7.
Nde2 {[%clk 0:02:58.8]} 7... b5 {[%clk 0:03:00.4]} 8. Ng3 {[%clk 0:02:56.9]}
8... Qc7 {[%clk 0:03:00.2]} 9. Bd3 {[%clk 0:02:40.9]} 9... Nbd7 {[%clk
0:02:59.5]} 10. O-O {[%clk 0:02:40.6]} 10... Bb7 {[%clk 0:02:55.1]} 11. f4
{[%clk 0:02:39.3]} 11... g6 {[%clk 0:02:39.8]} 12. a3 {[%clk 0:02:37.8]} 12...
Bg7 {[%clk 0:02:39.8]} 13. f5 {[%clk 0:02:32.6]} 13... O-O {[%clk 0:02:29.5]}
14. Be3 {[%clk 0:02:23.7]} 14... d5 {[%clk 0:02:23.4]} 15. exd5 {[%clk 0:02:16]}
15... Bxd5 {[%clk 0:01:54]} 16. Bg5 {[%clk 0:01:56.1]} 16... Rfe8 {[%clk
0:01:23]} 17. fxg6 {[%clk 0:01:53.9]} 17... hxg6 {[%clk 0:01:22.9]} 18. Bxf6
{[%clk 0:01:52.8]} 18... Nxf6 {[%clk 0:01:23.4]} 19. Nxd5 {[%clk 0:01:38.3]}
19... Nxd5 {[%clk 0:01:23.1]} 20. Qf3 {[%clk 0:01:38.2]} 20... Nf4 {[%clk
0:01:06.5]} 21. Be4 {[%clk 0:01:34]} 21... Rad8 {[%clk 0:01:06.5]} 22. Ne2
{[%clk 0:01:28.7]} 22... f5 {[%clk 0:01:00.8]} 23. Nxf4 {[%clk 0:01:26.2]} 23...
fxe4 {[%clk 0:00:57.6]} 24. Qb3+ {[%clk 0:01:26]} 24... Kh7 {[%clk 0:00:54.8]}
25. Ne2 {[%clk 0:01:25.7]} 25... Qc5+ {[%clk 0:00:52.2]} 26. Kh1 {[%clk
0:01:20.8]} 26... Rd2 {[%clk 0:00:52.6]} 27. Nc3 {[%clk 0:01:11.6]} 27... Qe3
{[%clk 0:00:29.9]} 28. Rae1 {[%clk 0:00:54.8]} 28... Qg3 {[%clk 0:00:29.5]} 29.
Rg1 {[%clk 0:00:49.2]} 29... Rxg2 {[%clk 0:00:28.1]} 30. Rxg2 {[%clk 0:00:49.4]}
30... Qxe1+ {[%clk 0:00:28.4]} 31. Kh2 {[%clk 0:00:50.3]} 31... e3 {[%clk
0:00:24.5]} 32. Qf7 {[%clk 0:00:48.7]} 1-0

[Event "*** Titled Tuesday Blitz"]
[Site "Chess.com"]
[Date "2020.04.07"]
[Round "6"]
[White "Semen16"]
[Black "Treacherous_horse64"]
[Result "1-0"]
[WhiteElo "2406"]
[BlackElo "2179"]
[TimeControl "180+1"]
[EndTime "14:07:09 PDT"]
[Termination "Semen16 won by resignation"]

1. e4 {[%clk 0:03:00.9]} 1... c6 {[%clk 0:03:00]} 2. Nf3 {[%clk 0:02:58]} 2...
d5 {[%clk 0:03:00.9]} 3. Nc3 {[%clk 0:02:58.1]} 3... b5 {[%clk 0:03:00.7]} 4.
exd5 {[%clk 0:02:47.6]} 4... b4 {[%clk 0:03:00.5]} 5. Ne2 {[%clk 0:02:45.9]}
5... cxd5 {[%clk 0:03:00.8]} 6. d4 {[%clk 0:02:45.7]} 6... e6 {[%clk 0:02:59]}
7. Bf4 {[%clk 0:02:42.2]} 7... Bd6 {[%clk 0:02:57.6]} 8. Qd2 {[%clk 0:02:42.1]}
8... Nc6 {[%clk 0:02:53.7]} 9. Ng3 {[%clk 0:02:38.2]} 9... Nge7 {[%clk
0:02:22.4]} 10. Bd3 {[%clk 0:02:30.5]} 10... Qc7 {[%clk 0:02:08.7]} 11. Bxd6
{[%clk 0:02:27.3]} 11... Qxd6 {[%clk 0:02:09.6]} 12. O-O {[%clk 0:02:26.8]}
12... a5 {[%clk 0:02:06.8]} 13. Rfe1 {[%clk 0:02:25.3]} 13... Ba6 {[%clk
0:02:04.8]} 14. Bxa6 {[%clk 0:02:20.6]} 14... Rxa6 {[%clk 0:02:05.7]} 15. Qd3
{[%clk 0:02:19.8]} 15... Rb6 {[%clk 0:01:49.5]} 16. Nh5 {[%clk 0:02:19.2]} 16...
O-O {[%clk 0:01:48.3]} 17. Ng5 {[%clk 0:02:18.6]} 17... Ng6 {[%clk 0:01:32.3]}
18. Nf3 {[%clk 0:01:55.7]} 18... Nf4 {[%clk 0:01:27.2]} 19. Nxf4 {[%clk
0:01:55.5]} 19... Qxf4 {[%clk 0:01:28.1]} 20. Re3 {[%clk 0:01:53.4]} 20... Qc7
{[%clk 0:01:17.8]} 21. Ng5 {[%clk 0:01:49.1]} 21... g6 {[%clk 0:01:03.3]} 22.
Rh3 {[%clk 0:01:48.9]} 22... h5 {[%clk 0:01:02]} 23. Rxh5 {[%clk 0:01:46]} 23...
Qf4 {[%clk 0:00:50.9]} 24. Nxe6 {[%clk 0:01:44.1]} 24... Qg4 {[%clk 0:00:33.6]}
25. Nxf8 {[%clk 0:01:28.7]} 25... gxh5 {[%clk 0:00:30.7]} 26. Nh7 {[%clk
0:01:26.7]} 26... Qg7 {[%clk 0:00:29.3]} 27. Re1 {[%clk 0:01:19.6]} 27... Qxh7
{[%clk 0:00:28]} 28. Re8+ {[%clk 0:01:17.9]} 28... Kg7 {[%clk 0:00:27.7]} 29.
Qg3+ {[%clk 0:01:16.9]} 29... Qg6 {[%clk 0:00:27.4]} 30. Qc7 {[%clk 0:01:17]}
30... Nxd4 {[%clk 0:00:26.1]} 31. h3 {[%clk 0:01:04.5]} 31... Re6 {[%clk
0:00:24.1]} 32. Rxe6 {[%clk 0:00:55.9]} 32... Nxe6 {[%clk 0:00:19.4]} 33. Qe5+
{[%clk 0:00:55]} 33... Qf6 {[%clk 0:00:17.9]} 34. Qxd5 {[%clk 0:00:54.8]} 34...
Qxb2 {[%clk 0:00:18]} 35. Qxa5 {[%clk 0:00:54.1]} 35... Qxa2 {[%clk 0:00:16.6]}
36. Qxa2 {[%clk 0:00:53.3]} 1-0

[Event "*** Titled Tuesday Blitz"]
[Site "Chess.com"]
[Date "2020.04.07"]
[Round "6"]
[White "RitvarsReimanis"]
[Black "Fianchettoed-Tower"]
[Result "1-0"]
[WhiteElo "2603"]
[BlackElo "2377"]
[TimeControl "180+1"]
[EndTime "14:07:11 PDT"]
[Termination "RitvarsReimanis won by resignation"]

1. d4 {[%clk 0:03:00.9]} 1... Nf6 {[%clk 0:02:58]} 2. c4 {[%clk 0:03:01.4]} 2...
g6 {[%clk 0:02:58]} 3. Nc3 {[%clk 0:03:01.5]} 3... d5 {[%clk 0:02:58.6]} 4. cxd5
{[%clk 0:03:02.4]} 4... Nxd5 {[%clk 0:02:59.5]} 5. e4 {[%clk 0:03:03.3]} 5...
Nxc3 {[%clk 0:02:59.8]} 6. bxc3 {[%clk 0:03:04.2]} 6... Bg7 {[%clk 0:03:00.1]}
7. Be3 {[%clk 0:03:05.1]} 7... c5 {[%clk 0:03:00.2]} 8. Qd2 {[%clk 0:03:06]}
8... Qa5 {[%clk 0:02:54]} 9. Rc1 {[%clk 0:03:05.3]} 9... O-O {[%clk 0:02:52.6]}
10. Nf3 {[%clk 0:02:59.2]} 10... Bg4 {[%clk 0:02:49.9]} 11. Be2 {[%clk
0:02:50.9]} 11... Rd8 {[%clk 0:02:49.7]} 12. d5 {[%clk 0:02:50.5]} 12... e6
{[%clk 0:02:47.9]} 13. c4 {[%clk 0:02:49.8]} 13... Nc6 {[%clk 0:02:38.4]} 14.
Qxa5 {[%clk 0:02:32]} 14... Nxa5 {[%clk 0:02:39.3]} 15. Bxc5 {[%clk 0:02:19.1]}
15... Rac8 {[%clk 0:02:39.5]} 16. Bb4 {[%clk 0:02:13.6]} 16... b6 {[%clk
0:02:17.3]} 17. Nd2 {[%clk 0:01:43.1]} 17... Bxe2 {[%clk 0:02:08.7]} 18. Kxe2
{[%clk 0:01:44]} 18... Nb7 {[%clk 0:02:04.8]} 19. f3 {[%clk 0:01:21.2]} 19...
Bh6 {[%clk 0:02:04.9]} 20. Rhd1 {[%clk 0:01:12.7]} 20... Nd6 {[%clk 0:01:58.4]}
21. c5 {[%clk 0:00:40.8]} 21... bxc5 {[%clk 0:01:55.4]} 22. Rxc5 {[%clk
0:00:41.1]} 22... Rxc5 {[%clk 0:01:43.7]} 23. Bxc5 {[%clk 0:00:42]} 23... exd5
{[%clk 0:01:43.8]} 24. exd5 {[%clk 0:00:42.5]} 24... Nb7 {[%clk 0:01:42.3]} 25.
Ne4 {[%clk 0:00:38.6]} 25... f5 {[%clk 0:01:40.2]} 26. Be7 {[%clk 0:00:25.5]}
26... fxe4 {[%clk 0:01:35.4]} 27. Bxd8 {[%clk 0:00:25.6]} 27... exf3+ {[%clk
0:01:35.5]} 28. Kxf3 {[%clk 0:00:26.1]} 28... Nxd8 {[%clk 0:01:36]} 29. Rb1
{[%clk 0:00:23.2]} 29... Kf7 {[%clk 0:01:33.9]} 30. Rb8 {[%clk 0:00:21.6]} 30...
Ke7 {[%clk 0:01:29.4]} 31. Ra8 {[%clk 0:00:20.9]} 31... Bd2 {[%clk 0:01:24.5]}
32. Rxa7+ {[%clk 0:00:20.7]} 32... Kd6 {[%clk 0:01:25]} 33. Rxh7 {[%clk
0:00:20.6]} 33... Ba5 {[%clk 0:01:22.7]} 34. Ke4 {[%clk 0:00:19.3]} 34... Be1
{[%clk 0:01:15.7]} 35. g4 {[%clk 0:00:18.9]} 35... Bd2 {[%clk 0:01:14.9]} 36. a4
{[%clk 0:00:19.3]} 36... Kc5 {[%clk 0:01:13.6]} 37. h4 {[%clk 0:00:17.2]} 37...
Kd6 {[%clk 0:01:13.2]} 38. Rg7 {[%clk 0:00:15.6]} 38... Kc5 {[%clk 0:01:12.3]}
39. Rxg6 {[%clk 0:00:15.8]} 39... Nf7 {[%clk 0:01:12.8]} 40. Rc6+ {[%clk
0:00:15]} 40... Kb4 {[%clk 0:01:12.8]} 41. g5 {[%clk 0:00:15.2]} 41... Kxa4
{[%clk 0:01:10.4]} 42. g6 {[%clk 0:00:14.6]} 42... Nh6 {[%clk 0:01:10.6]} 43. g7
{[%clk 0:00:15.1]} 43... Kb5 {[%clk 0:01:08.5]} 44. Rxh6 {[%clk 0:00:14.6]}
44... Bxh6 {[%clk 0:01:09.4]} 45. g8=Q {[%clk 0:00:15.5]} 1-0

[Event "*** Titled Tuesday Blitz"]
[Site "Chess.com"]
[Date "2020.04.07"]
[Round "6"]
[White "Jbd735"]
[Black "manmanlai1"]
[Result "1-0"]
[WhiteElo "2464"]
[BlackElo "2300"]
[TimeControl "180+1"]
[EndTime "14:07:13 PDT"]
[Termination "Jbd735 won by resignation"]

1. e4 {[%clk 0:03:00.9]} 1... c6 {[%clk 0:02:59.8]} 2. d4 {[%clk 0:03:00.4]}
2... d5 {[%clk 0:03:00.3]} 3. Nc3 {[%clk 0:03:01]} 3... dxe4 {[%clk 0:03:00.2]}
4. Nxe4 {[%clk 0:03:01.9]} 4... Nf6 {[%clk 0:03:00.7]} 5. Nxf6+ {[%clk
0:03:01.5]} 5... exf6 {[%clk 0:03:01.6]} 6. c3 {[%clk 0:03:01.9]} 6... Bd6
{[%clk 0:03:01.5]} 7. Bd3 {[%clk 0:03:02.1]} 7... O-O {[%clk 0:03:02]} 8. Qc2
{[%clk 0:03:02.5]} 8... Re8+ {[%clk 0:03:01.8]} 9. Ne2 {[%clk 0:03:02.4]} 9...
h5 {[%clk 0:03:02.4]} 10. Be3 {[%clk 0:02:59.2]} 10... Nd7 {[%clk 0:02:59.8]}
11. O-O-O {[%clk 0:02:58.8]} 11... Qa5 {[%clk 0:02:52.7]} 12. Kb1 {[%clk
0:02:54.7]} 12... b5 {[%clk 0:02:52.2]} 13. Nf4 {[%clk 0:02:28.2]} 13... Bxf4
{[%clk 0:02:30.6]} 14. Bxf4 {[%clk 0:02:27.6]} 14... Nf8 {[%clk 0:02:27.3]} 15.
Rhe1 {[%clk 0:02:00.4]} 15... Be6 {[%clk 0:02:26.3]} 16. a3 {[%clk 0:02:00.4]}
16... Rad8 {[%clk 0:02:14]} 17. f3 {[%clk 0:01:49.3]} 17... Qa6 {[%clk
0:01:58.5]} 18. h3 {[%clk 0:01:46.3]} 18... h4 {[%clk 0:01:50.9]} 19. Qf2 {[%clk
0:01:41.1]} 19... Qa4 {[%clk 0:01:39.8]} 20. Qxh4 {[%clk 0:01:30.7]} 20... Qb3
{[%clk 0:01:36.3]} 21. Qg3 {[%clk 0:01:11.3]} 21... Qa2+ {[%clk 0:01:12.5]} 22.
Kc1 {[%clk 0:01:10.8]} 22... Bb3 {[%clk 0:01:06.4]} 23. Rxe8 {[%clk 0:00:49.8]}
23... Rxe8 {[%clk 0:01:00.3]} 24. Re1 {[%clk 0:00:47.6]} 24... Be6 {[%clk
0:00:23.4]} 25. Bb1 {[%clk 0:00:38]} 25... Qb3 {[%clk 0:00:20.7]} 26. Bh6 {[%clk
0:00:36.2]} 26... g6 {[%clk 0:00:19.9]} 27. h4 {[%clk 0:00:26.9]} 27... a5
{[%clk 0:00:16.2]} 28. h5 {[%clk 0:00:25.5]} 28... g5 {[%clk 0:00:16.1]} 29.
Bxg5 {[%clk 0:00:21.6]} 29... fxg5 {[%clk 0:00:16.1]} 30. Qxg5+ {[%clk
0:00:22.5]} 30... Kh8 {[%clk 0:00:15.9]} 31. Qf6+ {[%clk 0:00:22.2]} 31... Kg8
{[%clk 0:00:15.7]} 32. h6 {[%clk 0:00:22.3]} 1-0